[Event "*** MasterClass Titled Tuesday Blitz"]
[Site "Chess.com"]
[Date "2017.10.03"]
[Round "7"]
[White "ehrenfeld"]
[Black "Kawhi_Leonard2"]
[Result "1-0"]
[WhiteElo "2339"]
[BlackElo "2239"]
[TimeControl "180+2"]
[EndTime "14:34:50 PDT"]
[Termination "ehrenfeld won by resignation"]

1. e4 {[%clk 0:02:35.1]} 1... c5 {[%clk 0:02:59.4]} 2. Nf3 {[%clk 0:02:35.5]}
2... d6 {[%clk 0:03:00.3]} 3. Bc4 {[%clk 0:02:36.3]} 3... Nc6 {[%clk 0:03:00.7]}
4. c3 {[%clk 0:02:34.3]} 4... g6 {[%clk 0:03:01.8]} 5. h3 {[%clk 0:02:32.8]}
5... Bg7 {[%clk 0:03:02.9]} 6. d4 {[%clk 0:02:33.8]} 6... cxd4 {[%clk
0:03:01.3]} 7. cxd4 {[%clk 0:02:34.4]} 7... Nf6 {[%clk 0:03:02.9]} 8. Nc3 {[%clk
0:02:35]} 8... O-O {[%clk 0:03:00.4]} 9. Bb3 {[%clk 0:02:29.2]} 9... b5 {[%clk
0:02:58.1]} 10. O-O {[%clk 0:02:28]} 10... b4 {[%clk 0:02:58.4]} 11. Ne2 {[%clk
0:02:28.3]} 11... Bb7 {[%clk 0:02:57]} 12. Ng3 {[%clk 0:02:28.4]} 12... a5
{[%clk 0:02:55.8]} 13. Bg5 {[%clk 0:02:26.6]} 13... h6 {[%clk 0:02:54.1]} 14.
Be3 {[%clk 0:02:24.2]} 14... Rc8 {[%clk 0:02:47.9]} 15. Qd2 {[%clk 0:02:24.4]}
15... Kh7 {[%clk 0:02:48.9]} 16. Qe2 {[%clk 0:02:10.4]} 16... e6 {[%clk
0:02:44.8]} 17. Rad1 {[%clk 0:02:10]} 17... Ne7 {[%clk 0:02:39.8]} 18. Bc2
{[%clk 0:02:08.6]} 18... Qc7 {[%clk 0:02:11.1]} 19. Bd3 {[%clk 0:02:08.6]} 19...
Rfd8 {[%clk 0:02:09]} 20. Rfe1 {[%clk 0:02:07.8]} 20... d5 {[%clk 0:02:05.4]}
21. e5 {[%clk 0:02:07.3]} 21... Ne4 {[%clk 0:02:06.5]} 22. Nh2 {[%clk
0:01:57.6]} 22... Nxg3 {[%clk 0:01:56.8]} 23. fxg3 {[%clk 0:01:58.1]} 23... Qb6
{[%clk 0:01:45.9]} 24. Rf1 {[%clk 0:01:56.9]} 24... Nf5 {[%clk 0:01:32.4]} 25.
Bxf5 {[%clk 0:01:55.2]} 25... exf5 {[%clk 0:01:33.3]} 26. g4 {[%clk 0:01:56.6]}
26... Ba6 {[%clk 0:01:10.8]} 27. Qf2 {[%clk 0:01:57.5]} 27... Bxf1 {[%clk
0:01:11.2]} 28. Rxf1 {[%clk 0:01:58.2]} 28... fxg4 {[%clk 0:01:00.8]} 29. Nxg4
{[%clk 0:01:57.2]} 29... Rc7 {[%clk 0:00:57.5]} 30. Qh4 {[%clk 0:01:56.5]} 30...
h5 {[%clk 0:00:57.7]} 31. Nf6+ {[%clk 0:01:44.9]} 31... Bxf6 {[%clk 0:00:41.7]}
32. Rxf6 {[%clk 0:01:45.2]} 32... Rc6 {[%clk 0:00:31.3]} 33. Rxf7+ {[%clk
0:01:43.8]} 33... Kg8 {[%clk 0:00:31]} 34. Qe7 {[%clk 0:01:42.3]} 34... Rc1+
{[%clk 0:00:26.6]} 35. Kh2 {[%clk 0:01:39.8]} 1-0

[Event "*** MasterClass Titled Tuesday Blitz"]
[Site "Chess.com"]
[Date "2017.10.03"]
[Round "7"]
[White "Muisback26"]
[Black "GrigorGrigorov"]
[Result "1/2-1/2"]
[WhiteElo "2706"]
[BlackElo "2728"]
[TimeControl "180+2"]
[EndTime "14:34:59 PDT"]
[Termination "Game drawn by repetition"]

1. e4 {[%clk 0:03:01.6]} 1... g6 {[%clk 0:03:01.1]} 2. d4 {[%clk 0:03:01.3]}
2... Bg7 {[%clk 0:03:02.3]} 3. Nc3 {[%clk 0:03:02.9]} 3... c6 {[%clk 0:03:03.3]}
4. Nf3 {[%clk 0:03:02.1]} 4... d6 {[%clk 0:03:03.8]} 5. Be3 {[%clk 0:03:01.6]}
5... Nf6 {[%clk 0:03:04.7]} 6. Qd2 {[%clk 0:03:01.1]} 6... O-O {[%clk
0:03:04.3]} 7. Bh6 {[%clk 0:03:01.1]} 7... Bg4 {[%clk 0:02:54.3]} 8. Bxg7 {[%clk
0:02:56.4]} 8... Kxg7 {[%clk 0:02:54.8]} 9. Nh4 {[%clk 0:02:49.9]} 9... e5
{[%clk 0:02:53.3]} 10. h3 {[%clk 0:02:40.2]} 10... Be6 {[%clk 0:02:48.1]} 11.
Nf3 {[%clk 0:02:19]} 11... Qc7 {[%clk 0:02:22.1]} 12. g4 {[%clk 0:02:13.9]}
12... Re8 {[%clk 0:02:04.9]} 13. O-O-O {[%clk 0:02:12.4]} 13... b5 {[%clk
0:01:39.2]} 14. Bd3 {[%clk 0:01:55.5]} 14... b4 {[%clk 0:01:33.7]} 15. Ne2
{[%clk 0:01:56.3]} 15... c5 {[%clk 0:01:09.4]} 16. d5 {[%clk 0:01:35.2]} 16...
Bd7 {[%clk 0:00:59.7]} 17. c4 {[%clk 0:01:25.9]} 17... bxc3 {[%clk 0:00:58.8]}
18. Nxc3 {[%clk 0:01:26.8]} 18... c4 {[%clk 0:00:58.9]} 19. Bb1 {[%clk
0:01:25.2]} 19... Na6 {[%clk 0:01:00]} 20. Qe3 {[%clk 0:01:04.8]} 20... Rab8
{[%clk 0:00:59.7]} 21. Rd2 {[%clk 0:01:05.7]} 21... Nc5 {[%clk 0:00:59.1]} 22.
Nh4 {[%clk 0:01:01.2]} 22... Qd8 {[%clk 0:00:52.1]} 23. Nf3 {[%clk 0:00:35.6]}
23... Qc7 {[%clk 0:00:48]} 24. Nh4 {[%clk 0:00:36.3]} 24... Qd8 {[%clk
0:00:48.8]} 25. Nf3 {[%clk 0:00:36.8]} 25... Qc7 {[%clk 0:00:46.4]} 26. Nh4
{[%clk 0:00:35.4]} 26... Qd8 {[%clk 0:00:47.2]} 1/2-1/2

[Event "*** MasterClass Titled Tuesday Blitz"]
[Site "Chess.com"]
[Date "2017.10.03"]
[Round "7"]
[White "calemcc"]
[Black "DiogenesSinopeus"]
[Result "0-1"]
[WhiteElo "2171"]
[BlackElo "2348"]
[TimeControl "180+2"]
[EndTime "14:35:08 PDT"]
[Termination "DiogenesSinopeus won by checkmate"]

1. d4 {[%clk 0:03:01.9]} 1... Nf6 {[%clk 0:03:00.1]} 2. c4 {[%clk 0:03:03.8]}
2... e6 {[%clk 0:03:00.5]} 3. Nf3 {[%clk 0:03:03.5]} 3... Bb4+ {[%clk
0:03:01.4]} 4. Nbd2 {[%clk 0:03:03.9]} 4... b6 {[%clk 0:03:01.9]} 5. a3 {[%clk
0:03:04.5]} 5... Bxd2+ {[%clk 0:03:02.9]} 6. Qxd2 {[%clk 0:03:05.1]} 6... Ne4
{[%clk 0:03:04.1]} 7. Qc2 {[%clk 0:03:05.5]} 7... Bb7 {[%clk 0:03:05.7]} 8. g3
{[%clk 0:03:06.8]} 8... h6 {[%clk 0:03:06.3]} 9. Bg2 {[%clk 0:03:08.2]} 9... Ng5
{[%clk 0:03:06.1]} 10. Bxg5 {[%clk 0:03:01.7]} 10... hxg5 {[%clk 0:03:05.9]} 11.
e4 {[%clk 0:02:59.9]} 11... d6 {[%clk 0:03:04.2]} 12. O-O-O {[%clk 0:02:57.9]}
12... Nd7 {[%clk 0:03:04.7]} 13. Kb1 {[%clk 0:02:57.8]} 13... Qe7 {[%clk
0:03:05.1]} 14. h3 {[%clk 0:02:47.1]} 14... O-O-O {[%clk 0:03:05.4]} 15. Rc1
{[%clk 0:02:43.9]} 15... c5 {[%clk 0:03:01.4]} 16. Rhe1 {[%clk 0:02:36.3]} 16...
e5 {[%clk 0:03:01.8]} 17. d5 {[%clk 0:02:31.3]} 17... Kb8 {[%clk 0:02:49.8]} 18.
Qd2 {[%clk 0:02:31.5]} 18... f6 {[%clk 0:02:49.5]} 19. Ng1 {[%clk 0:02:26.8]}
19... Bc8 {[%clk 0:02:49.4]} 20. f4 {[%clk 0:02:20.5]} 20... exf4 {[%clk
0:02:50.1]} 21. gxf4 {[%clk 0:02:21.2]} 21... gxf4 {[%clk 0:02:51.4]} 22. Qxf4
{[%clk 0:02:21.8]} 22... g5 {[%clk 0:02:51.3]} 23. Qg3 {[%clk 0:02:19.3]} 23...
Qe5 {[%clk 0:02:47.8]} 24. Qf2 {[%clk 0:02:18.7]} 24... Qd4 {[%clk 0:02:33.8]}
25. Qxd4 {[%clk 0:02:12.8]} 25... cxd4 {[%clk 0:02:35.7]} 26. Rcd1 {[%clk
0:02:12.5]} 26... Ne5 {[%clk 0:02:13]} 27. Rxd4 {[%clk 0:02:12.6]} 27... Bd7
{[%clk 0:02:08.7]} 28. Rd2 {[%clk 0:02:04.5]} 28... Nxc4 {[%clk 0:02:03.4]} 29.
Rf2 {[%clk 0:02:03.7]} 29... Rh6 {[%clk 0:01:59.8]} 30. Rc2 {[%clk 0:01:56.4]}
30... Ne5 {[%clk 0:01:58.7]} 31. Rf1 {[%clk 0:01:57.1]} 31... Bb5 {[%clk
0:01:58.4]} 32. Rd1 {[%clk 0:01:44.1]} 32... Ba4 {[%clk 0:01:49.5]} 33. Rf1
{[%clk 0:01:36.5]} 33... Bxc2+ {[%clk 0:01:48.9]} 34. Kxc2 {[%clk 0:01:38.4]}
34... g4 {[%clk 0:01:48.6]} 35. Kb1 {[%clk 0:01:30.4]} 35... Nc4 {[%clk
0:01:37.8]} 36. hxg4 {[%clk 0:01:27.9]} 36... Nd2+ {[%clk 0:01:38.4]} 37. Ka2
{[%clk 0:01:27.4]} 37... Nxf1 {[%clk 0:01:39.4]} 38. Bxf1 {[%clk 0:01:29.3]}
38... Rh1 {[%clk 0:01:40.5]} 39. Ne2 {[%clk 0:01:26.9]} 39... Rxf1 {[%clk
0:01:41.3]} 40. Nd4 {[%clk 0:01:25.6]} 40... Rg8 {[%clk 0:01:37.9]} 41. Nc6+
{[%clk 0:01:23.8]} 41... Kc7 {[%clk 0:01:36.6]} 42. Nxa7 {[%clk 0:01:24.4]}
42... Rxg4 {[%clk 0:01:35.9]} 43. Nb5+ {[%clk 0:01:25.8]} 43... Kd7 {[%clk
0:01:37.4]} 44. Nc3 {[%clk 0:01:26.5]} 44... Rc1 {[%clk 0:01:32.4]} 45. Na4
{[%clk 0:01:26.5]} 45... Rxe4 {[%clk 0:01:31.7]} 46. Nxb6+ {[%clk 0:01:27.3]}
46... Kd8 {[%clk 0:01:32.3]} 47. a4 {[%clk 0:01:25.9]} 47... Rc5 {[%clk
0:01:26.5]} 48. b4 {[%clk 0:01:26.7]} 48... Rc3 {[%clk 0:01:26.1]} 49. Kb2
{[%clk 0:01:26.6]} 49... Rh3 {[%clk 0:01:26.7]} 50. a5 {[%clk 0:01:28]} 50...
Re2+ {[%clk 0:01:27.6]} 51. Kc1 {[%clk 0:01:29.1]} 51... Rh1# {[%clk 0:01:28.7]}
0-1

[Event "*** MasterClass Titled Tuesday Blitz"]
[Site "Chess.com"]
[Date "2017.10.03"]
[Round "7"]
[White "Msb2"]
[Black "amaidel"]
[Result "1-0"]
[WhiteElo "2622"]
[BlackElo "2427"]
[TimeControl "180+2"]
[EndTime "14:35:27 PDT"]
[Termination "Msb2 won by checkmate"]

1. d4 {[%clk 0:03:01.9]} 1... f5 {[%clk 0:02:59.5]} 2. Bg5 {[%clk 0:03:02.5]}
2... Nf6 {[%clk 0:03:00]} 3. Bxf6 {[%clk 0:03:02.6]} 3... exf6 {[%clk
0:03:00.8]} 4. e3 {[%clk 0:03:04.5]} 4... d5 {[%clk 0:03:01.5]} 5. c4 {[%clk
0:03:05.8]} 5... Be6 {[%clk 0:02:53.4]} 6. Qb3 {[%clk 0:02:59.8]} 6... b6 {[%clk
0:02:47.8]} 7. Nc3 {[%clk 0:02:59.6]} 7... c6 {[%clk 0:02:42.8]} 8. Nh3 {[%clk
0:03:00]} 8... Bd6 {[%clk 0:02:41.1]} 9. cxd5 {[%clk 0:02:59.9]} 9... cxd5
{[%clk 0:02:41.6]} 10. Bb5+ {[%clk 0:03:01.5]} 10... Kf7 {[%clk 0:02:39.4]} 11.
O-O {[%clk 0:03:02.3]} 11... a6 {[%clk 0:02:36.9]} 12. Bd3 {[%clk 0:03:02.6]}
12... Nc6 {[%clk 0:02:36.2]} 13. a3 {[%clk 0:02:59.4]} 13... Na5 {[%clk
0:02:35.3]} 14. Qc2 {[%clk 0:02:59.7]} 14... g6 {[%clk 0:02:35.7]} 15. b4 {[%clk
0:02:58.4]} 15... Nc6 {[%clk 0:02:28.4]} 16. Ne2 {[%clk 0:02:51.1]} 16... Qd7
{[%clk 0:02:25.3]} 17. Nhf4 {[%clk 0:02:52.2]} 17... Rhc8 {[%clk 0:02:22.8]} 18.
Qa2 {[%clk 0:02:52.8]} 18... Ne7 {[%clk 0:02:21.2]} 19. Nxe6 {[%clk 0:02:53.2]}
19... Qxe6 {[%clk 0:02:21.8]} 20. Rac1 {[%clk 0:02:54.8]} 20... a5 {[%clk
0:02:19.8]} 21. Qb3 {[%clk 0:02:42.6]} 21... axb4 {[%clk 0:02:18.5]} 22. axb4
{[%clk 0:02:44.5]} 22... Rxc1 {[%clk 0:02:18.7]} 23. Rxc1 {[%clk 0:02:46.4]}
23... Rc8 {[%clk 0:02:19.9]} 24. Rxc8 {[%clk 0:02:47]} 24... Qxc8 {[%clk
0:02:21.3]} 25. Nc3 {[%clk 0:02:48.1]} 25... Qe6 {[%clk 0:02:17.7]} 26. Nxd5
{[%clk 0:02:38.3]} 26... Nxd5 {[%clk 0:02:17.3]} 27. Bc4 {[%clk 0:02:39.4]}
27... Kg7 {[%clk 0:02:18.8]} 28. Bxd5 {[%clk 0:02:40.4]} 28... Qe7 {[%clk
0:02:20.3]} 29. b5 {[%clk 0:02:40.3]} 29... Qc7 {[%clk 0:02:17.7]} 30. g3 {[%clk
0:02:40.1]} 30... Qc1+ {[%clk 0:02:13.6]} 31. Kg2 {[%clk 0:02:40.7]} 31... h5
{[%clk 0:02:02.2]} 32. h4 {[%clk 0:02:40.4]} 32... g5 {[%clk 0:01:52.4]} 33. Bc6
{[%clk 0:02:25.1]} 33... f4 {[%clk 0:01:18.6]} 34. Qe6 {[%clk 0:01:48.1]} 34...
Qa3 {[%clk 0:00:47.2]} 35. Bd5 {[%clk 0:01:40]} 35... fxe3 {[%clk 0:00:37.3]}
36. Qf7+ {[%clk 0:01:39.9]} 36... Kh6 {[%clk 0:00:36.9]} 37. Qxf6+ {[%clk
0:01:39.7]} 37... Kh7 {[%clk 0:00:38.1]} 38. Qf7+ {[%clk 0:01:34.5]} 38... Kh6
{[%clk 0:00:37.7]} 39. Be4 {[%clk 0:01:28.8]} 39... e2 {[%clk 0:00:29.9]} 40.
Qh7# {[%clk 0:01:28.6]} 1-0

[Event "*** MasterClass Titled Tuesday Blitz"]
[Site "Chess.com"]
[Date "2017.10.03"]
[Round "7"]
[White "Dhaydon19"]
[Black "peteseeger"]
[Result "1-0"]
[WhiteElo "2460"]
[BlackElo "2136"]
[TimeControl "180+2"]
[EndTime "14:35:41 PDT"]
[Termination "Dhaydon19 won by resignation"]

1. d4 {[%clk 0:02:57.3]} 1... g6 {[%clk 0:03:00.3]} 2. Nf3 {[%clk 0:02:56.9]}
2... Bg7 {[%clk 0:03:01.1]} 3. g3 {[%clk 0:02:57.2]} 3... d6 {[%clk 0:02:59.9]}
4. Bg2 {[%clk 0:02:57.4]} 4... f5 {[%clk 0:03:00.5]} 5. O-O {[%clk 0:02:57.4]}
5... Nf6 {[%clk 0:03:01]} 6. c4 {[%clk 0:02:57.7]} 6... O-O {[%clk 0:03:01.1]}
7. Nc3 {[%clk 0:02:57]} 7... c6 {[%clk 0:03:01.9]} 8. d5 {[%clk 0:02:54.8]} 8...
e5 {[%clk 0:03:02.5]} 9. dxc6 {[%clk 0:02:50.4]} 9... Nxc6 {[%clk 0:02:54.9]}
10. Bg5 {[%clk 0:02:47.7]} 10... h6 {[%clk 0:02:38.2]} 11. Bxf6 {[%clk
0:02:45.2]} 11... Qxf6 {[%clk 0:02:38.8]} 12. Qd5+ {[%clk 0:02:43.2]} 12... Be6
{[%clk 0:02:35]} 13. Qxd6 {[%clk 0:02:40.2]} 13... Bxc4 {[%clk 0:02:35.3]} 14.
Qa3 {[%clk 0:02:37]} 14... e4 {[%clk 0:02:33.2]} 15. Nd2 {[%clk 0:02:36.6]}
15... Bf7 {[%clk 0:02:25.8]} 16. Nb3 {[%clk 0:02:35.3]} 16... Rfd8 {[%clk
0:02:16.5]} 17. Rad1 {[%clk 0:02:30.7]} 17... Rxd1 {[%clk 0:02:08.5]} 18. Rxd1
{[%clk 0:02:09.8]} 18... Rd8 {[%clk 0:02:09]} 19. Rc1 {[%clk 0:02:01.1]} 19...
Qg5 {[%clk 0:01:42.1]} 20. e3 {[%clk 0:01:57.4]} 20... Ne5 {[%clk 0:01:38.7]}
21. Qxa7 {[%clk 0:01:56.6]} 21... Nf3+ {[%clk 0:01:21.2]} 22. Bxf3 {[%clk
0:01:51.4]} 22... exf3 {[%clk 0:01:21.3]} 23. Qxb7 {[%clk 0:01:52.2]} 23... Bxc3
{[%clk 0:01:17]} 24. bxc3 {[%clk 0:01:50.7]} 24... Bd5 {[%clk 0:01:16.8]} 25.
Qc7 {[%clk 0:01:50.3]} 25... Ra8 {[%clk 0:01:11.8]} 26. c4 {[%clk 0:01:46.9]}
26... Qg4 {[%clk 0:00:58]} 27. Qe5 {[%clk 0:00:55.6]} 27... Bf7 {[%clk
0:00:44.9]} 28. Nd4 {[%clk 0:00:53.9]} 28... Rxa2 {[%clk 0:00:43.2]} 29. c5
{[%clk 0:00:53.1]} 29... Ra5 {[%clk 0:00:15.9]} 30. Qf4 {[%clk 0:00:53.5]} 30...
Qh3 {[%clk 0:00:11.2]} 31. Qxf3 {[%clk 0:00:52.8]} 1-0

[Event "*** MasterClass Titled Tuesday Blitz"]
[Site "Chess.com"]
[Date "2017.10.03"]
[Round "7"]
[White "Jungle_Jaguar"]
[Black "MaxLeto"]
[Result "0-1"]
[WhiteElo "2378"]
[BlackElo "2357"]
[TimeControl "180+2"]
[EndTime "14:36:22 PDT"]
[Termination "MaxLeto won by checkmate"]

1. e4 {[%clk 0:03:01.9]} 1... c5 {[%clk 0:02:54.9]} 2. Nf3 {[%clk 0:03:03.4]}
2... d6 {[%clk 0:02:55.9]} 3. d4 {[%clk 0:03:04.9]} 3... cxd4 {[%clk 0:02:57.8]}
4. Nxd4 {[%clk 0:03:06.5]} 4... Nf6 {[%clk 0:02:58.7]} 5. Nc3 {[%clk 0:03:08]}
5... a6 {[%clk 0:02:59.6]} 6. h3 {[%clk 0:03:09.5]} 6... e6 {[%clk 0:02:59.7]}
7. g4 {[%clk 0:03:10.2]} 7... Nfd7 {[%clk 0:03:01.1]} 8. g5 {[%clk 0:03:10]}
8... b5 {[%clk 0:03:02.1]} 9. h4 {[%clk 0:03:10.5]} 9... Be7 {[%clk 0:02:59.2]}
10. Be3 {[%clk 0:03:10.1]} 10... Bb7 {[%clk 0:02:59.2]} 11. Qd2 {[%clk
0:03:10.8]} 11... Ne5 {[%clk 0:03:00.3]} 12. Rh3 {[%clk 0:03:08.6]} 12... b4
{[%clk 0:02:35.3]} 13. Na4 {[%clk 0:02:50.9]} 13... Qa5 {[%clk 0:01:50.9]} 14.
b3 {[%clk 0:02:44.9]} 14... Bxe4 {[%clk 0:01:51.5]} 15. f4 {[%clk 0:02:30.3]}
15... Ned7 {[%clk 0:01:32.1]} 16. a3 {[%clk 0:02:16]} 16... d5 {[%clk
0:01:01.9]} 17. h5 {[%clk 0:02:16.5]} 17... O-O {[%clk 0:00:45.1]} 18. g6 {[%clk
0:02:05.1]} 18... e5 {[%clk 0:00:19.6]} 19. gxf7+ {[%clk 0:01:59.1]} 19... Rxf7
{[%clk 0:00:20.7]} 20. Ne6 {[%clk 0:01:56.6]} 20... Nc6 {[%clk 0:00:14.3]} 21.
Ng5 {[%clk 0:01:34.9]} 21... Bxg5 {[%clk 0:00:08.5]} 22. fxg5 {[%clk 0:01:36.8]}
22... Raf8 {[%clk 0:00:10.1]} 23. Be2 {[%clk 0:01:32.5]} 23... bxa3 {[%clk
0:00:04]} 24. g6 {[%clk 0:01:32.4]} 24... hxg6 {[%clk 0:00:03.2]} 25. hxg6
{[%clk 0:01:33.1]} 25... Qxd2+ {[%clk 0:00:04.6]} 26. Kxd2 {[%clk 0:01:33.5]}
26... Bxg6 {[%clk 0:00:06.5]} 27. Bxa6 {[%clk 0:01:34.2]} 27... Bf5 {[%clk
0:00:03.6]} 28. Rh4 {[%clk 0:01:34.3]} 28... Nf6 {[%clk 0:00:03.1]} 29. Rxa3
{[%clk 0:01:34.3]} 29... Ne4+ {[%clk 0:00:03.9]} 30. Kc1 {[%clk 0:01:35]} 30...
Nb4 {[%clk 0:00:04.5]} 31. Be2 {[%clk 0:01:30.1]} 31... Rc8 {[%clk 0:00:05.1]}
32. Bd1 {[%clk 0:01:31.1]} 32... Rfc7 {[%clk 0:00:05.5]} 33. Nb6 {[%clk
0:01:30.7]} 33... Rd8 {[%clk 0:00:02.7]} 34. Kb2 {[%clk 0:01:29.1]} 34... d4
{[%clk 0:00:03.9]} 35. Bc1 {[%clk 0:01:27.4]} 35... Nc3 {[%clk 0:00:04.7]} 36.
Bg4 {[%clk 0:01:08.3]} 36... Bxg4 {[%clk 0:00:04.2]} 37. Rxg4 {[%clk 0:01:10.2]}
37... Nb5 {[%clk 0:00:05.6]} 38. Ra5 {[%clk 0:01:11.6]} 38... Rxc2+ {[%clk
0:00:06.5]} 39. Ka1 {[%clk 0:01:09.7]} 39... Rxc1+ {[%clk 0:00:07.4]} 40. Kb2
{[%clk 0:01:11.2]} 40... Rc2+ {[%clk 0:00:08.8]} 41. Ka1 {[%clk 0:01:12.4]}
41... Nc3 {[%clk 0:00:09.4]} 42. Ra7 {[%clk 0:01:09.2]} 42... Rc1+ {[%clk
0:00:09.9]} 43. Kb2 {[%clk 0:01:10]} 43... Nd3+ {[%clk 0:00:11.5]} 44. Ka3
{[%clk 0:01:09.4]} 44... Ra1# {[%clk 0:00:13.1]} 0-1

[Event "*** MasterClass Titled Tuesday Blitz"]
[Site "Chess.com"]
[Date "2017.10.03"]
[Round "7"]
[White "RaphaeI"]
[Black "Krasimir_Rusev"]
[Result "1-0"]
[WhiteElo "2436"]
[BlackElo "2518"]
[TimeControl "180+2"]
[EndTime "14:36:31 PDT"]
[Termination "RaphaeI won by resignation"]

1. Nf3 {[%clk 0:03:01.9]} 1... d5 {[%clk 0:02:59.7]} 2. g3 {[%clk 0:03:02.4]}
2... c6 {[%clk 0:02:57.8]} 3. Bg2 {[%clk 0:03:02.8]} 3... Bg4 {[%clk 0:02:59.1]}
4. O-O {[%clk 0:02:56.6]} 4... Nd7 {[%clk 0:02:58.7]} 5. d3 {[%clk 0:02:56.4]}
5... e6 {[%clk 0:02:59.6]} 6. c4 {[%clk 0:02:48.4]} 6... Ngf6 {[%clk 0:02:58.5]}
7. cxd5 {[%clk 0:02:41]} 7... cxd5 {[%clk 0:02:53.6]} 8. Nc3 {[%clk 0:02:26.6]}
8... Nc5 {[%clk 0:02:39.8]} 9. h3 {[%clk 0:02:22.5]} 9... Bh5 {[%clk 0:02:39.2]}
10. b4 {[%clk 0:01:49.5]} 10... Ncd7 {[%clk 0:02:39.1]} 11. a3 {[%clk
0:01:48.6]} 11... a5 {[%clk 0:02:39.7]} 12. b5 {[%clk 0:01:25.8]} 12... Bc5
{[%clk 0:02:40.1]} 13. Na4 {[%clk 0:01:25.1]} 13... Be7 {[%clk 0:02:37.6]} 14.
Be3 {[%clk 0:01:24.7]} 14... O-O {[%clk 0:02:36.2]} 15. Qb3 {[%clk 0:01:17.4]}
15... e5 {[%clk 0:02:36.6]} 16. g4 {[%clk 0:01:14.3]} 16... Bg6 {[%clk 0:02:35]}
17. g5 {[%clk 0:01:14.4]} 17... Nh5 {[%clk 0:01:54.1]} 18. Qxd5 {[%clk
0:01:14.8]} 18... Nf4 {[%clk 0:01:33.6]} 19. Bxf4 {[%clk 0:01:07.2]} 19... exf4
{[%clk 0:01:35.5]} 20. Qxb7 {[%clk 0:00:48.6]} 20... Rb8 {[%clk 0:01:24]} 21.
Qd5 {[%clk 0:00:49]} 21... Kh8 {[%clk 0:01:02.9]} 22. Nd4 {[%clk 0:00:45.1]}
22... Nb6 {[%clk 0:00:41.6]} 23. Nxb6 {[%clk 0:00:27.6]} 23... Qxb6 {[%clk
0:00:31.4]} 24. Nc6 {[%clk 0:00:28.6]} 24... Rbe8 {[%clk 0:00:25.3]} 25. a4
{[%clk 0:00:29.3]} 25... Bd8 {[%clk 0:00:19.2]} 26. Bf3 {[%clk 0:00:25.6]} 26...
Bc7 {[%clk 0:00:19.3]} 27. Rac1 {[%clk 0:00:25.2]} 27... Re6 {[%clk 0:00:19.9]}
28. Qc5 {[%clk 0:00:24.8]} 28... Rfe8 {[%clk 0:00:17.5]} 29. Qxb6 {[%clk
0:00:19.4]} 29... Bxb6 {[%clk 0:00:19.4]} 30. Rc4 {[%clk 0:00:20.4]} 30... Rd6
{[%clk 0:00:19.3]} 31. Rxf4 {[%clk 0:00:19.7]} 31... h6 {[%clk 0:00:16.5]} 32.
h4 {[%clk 0:00:17.1]} 32... Kh7 {[%clk 0:00:18.4]} 33. h5 {[%clk 0:00:15.7]}
33... Bxh5 {[%clk 0:00:18.8]} 34. Bxh5 {[%clk 0:00:15.5]} 34... hxg5 {[%clk
0:00:20.2]} 35. Rxf7 {[%clk 0:00:16.3]} 35... Rh6 {[%clk 0:00:20.6]} 36. Rxg7+
{[%clk 0:00:15.3]} 36... Kxg7 {[%clk 0:00:22.5]} 37. Bxe8 {[%clk 0:00:17]} 1-0

[Event "*** MasterClass Titled Tuesday Blitz"]
[Site "Chess.com"]
[Date "2017.10.03"]
[Round "7"]
[White "Abdodi"]
[Black "Mistheoretical"]
[Result "0-1"]
[WhiteElo "2134"]
[BlackElo "2197"]
[TimeControl "180+2"]
[EndTime "14:36:33 PDT"]
[Termination "Mistheoretical won on time"]

1. d4 {[%clk 0:02:57.1]} 1... Nf6 {[%clk 0:03:00.2]} 2. Nd2 {[%clk 0:02:52]}
2... d5 {[%clk 0:02:57.3]} 3. Ngf3 {[%clk 0:02:50.1]} 3... Bg4 {[%clk
0:02:38.1]} 4. Ne5 {[%clk 0:02:35.7]} 4... Bh5 {[%clk 0:02:29.4]} 5. c4 {[%clk
0:02:34.5]} 5... c6 {[%clk 0:02:22.5]} 6. Qb3 {[%clk 0:02:32.6]} 6... Qb6 {[%clk
0:02:20.9]} 7. e3 {[%clk 0:02:27.7]} 7... e6 {[%clk 0:02:10.4]} 8. c5 {[%clk
0:02:22.1]} 8... Qc7 {[%clk 0:02:01]} 9. Qc3 {[%clk 0:01:26.3]} 9... Nbd7 {[%clk
0:01:31]} 10. Nxd7 {[%clk 0:01:08]} 10... Nxd7 {[%clk 0:01:28.3]} 11. b4 {[%clk
0:01:07.2]} 11... Be7 {[%clk 0:01:16.4]} 12. Bd3 {[%clk 0:00:39.5]} 12... O-O
{[%clk 0:01:14.9]} 13. O-O {[%clk 0:00:39.8]} 13... Rfe8 {[%clk 0:01:09.3]} 14.
a4 {[%clk 0:00:39.2]} 14... e5 {[%clk 0:01:04.7]} 15. e4 {[%clk 0:00:39.6]}
15... exd4 {[%clk 0:01:00.7]} 16. Qb3 {[%clk 0:00:37.6]} 16... Nf6 {[%clk
0:00:51.3]} 17. Bb2 {[%clk 0:00:32]} 17... Rad8 {[%clk 0:00:42.6]} 18. exd5
{[%clk 0:00:16.7]} 18... Nxd5 {[%clk 0:00:34.9]} 19. Bc4 {[%clk 0:00:10.3]}
19... a5 {[%clk 0:00:26.7]} 20. Bxd4 {[%clk 0:00:08]} 20... Nxb4 {[%clk
0:00:22.5]} 21. Be3 {[%clk 0:00:08.6]} 21... Bf8 {[%clk 0:00:19.9]} 22. Rae1
{[%clk 0:00:06.6]} 22... Nd5 {[%clk 0:00:16.7]} 23. Bxd5 {[%clk 0:00:06.3]}
23... Rxd5 {[%clk 0:00:18.6]} 24. Nc4 {[%clk 0:00:06.5]} 24... Bg6 {[%clk
0:00:16.5]} 25. Nb6 {[%clk 0:00:06.3]} 25... Rd3 {[%clk 0:00:15.2]} 26. Qc4
{[%clk 0:00:06.2]} 26... Qd8 {[%clk 0:00:13.6]} 27. Rb1 {[%clk 0:00:06]} 27...
Rdxe3 {[%clk 0:00:13.8]} 28. fxe3 {[%clk 0:00:06.7]} 28... Bxb1 {[%clk
0:00:14.8]} 29. Rxb1 {[%clk 0:00:06.8]} 29... Rxe3 {[%clk 0:00:15.6]} 30. Rf1
{[%clk 0:00:04.8]} 30... Qe7 {[%clk 0:00:14.1]} 31. Nc8 {[%clk 0:00:04]} 31...
Qe6 {[%clk 0:00:13.8]} 32. Qxe6 {[%clk 0:00:03.6]} 32... Rxe6 {[%clk 0:00:15.7]}
0-1